bitfinex-derivatives/quotes_ETHF0:USTF0_20250923
["timestamp","ask_amount","ask_price","bid_price","bid_amount"]
[1758589319028,1.40163736,4190.2,4190.1,0.6511]
[1758589319336,1.40163736,4190.2,4190.1,0.97]
[1758589319539,1.19373736,4190.2,4190.1,0.97]
[1758589320337,1.40163736,4190.2,4190.1,0.97]
[1758589321527,0.98763736,4190.2,4190.1,0.97]
[1758589321927,1.20483736,4190.2,4190.1,0.97]
[1758589323338,1.42463736,4190.2,4190.1,0.97]
[1758589324037,1.68920381,4190.2,4190.1,0.97]
[1758589324335,1.68933125,4190.2,4190.1,0.97]
[1758589326028,0.7477,4189.9,4189.8,40.8]
[1758589326339,1.68923125,4189.9,4189.8,42.42992654]
[1758589326637,1.25223125,4189.9,4189.8,42.42992654]
[1758589326841,0.94153125,4189.9,4189.8,42.42992654]
[1758589328338,1.25223125,4189.9,4189.8,42.42992654]
[1758589328931,1.2542308,4189.9,4189.8,42.42992654]
[1758589330436,1.2542308,4189.9,4189.8,40.8]
[1758589331140,1.17692,4189.8,4189.7,0.9675]
[1758589331440,2.1204508,4189.8,4189.7,0.9675]
[1758589331639,2.1204508,4189.8,4189.7,41.7675]
[1758589335247,1.44161389,4189.8,4189.7,41.7675]
[1758589337736,1.22181389,4189.8,4189.7,41.7675]
[1758589338543,0.69391389,4189.8,4189.7,41.7675]
[1758589340848,1.00731389,4189.8,4189.7,41.7675]
[1758589341048,1.00731389,4189.8,4189.7,41.5265]
[1758589341248,1.00731389,4189.8,4189.7,41.7675]
[1758589342454,1.42561389,4189.8,4189.7,0.9675]
[1758589342646,2.10554356,4189.8,4189.7,0.9675]
[1758589342843,0.76545,4189.5,4189.4,0.2038]
[1758589343048,1.54674389,4189.5,4189.4,41.2448]
[1758589344254,1.54674389,4189.5,4189.4,41.5572]
[1758589344752,1.54674389,4189.5,4189.4,0.6645]
[1758589345053,1.54674389,4189.5,4189.4,0.4448]
[1758589347155,1.54674389,4189.5,4189.4,1.99242654]
[1758589347354,1.54674389,4189.5,4189.4,2.30482654]
[1758589349564,1.54674389,4189.5,4189.4,1.99242654]
[1758589349857,2.22653225,4189.5,4189.4,0.241]
[1758589350258,1.0789,4189.0,4188.9,2.06382654]
[1758589350451,1.34359389,4189.0,4188.9,2.30482654]
[1758589350652,1.34359389,4189.0,4188.9,43.10482654]
[1758589351154,1.54679389,4189.0,4188.9,2.30482654]
[1758589353562,1.54679389,4189.0,4188.9,0.4448]
[1758589354664,1.54679389,4189.0,4188.9,1.77272654]
[1758589355065,1.54679389,4189.0,4188.9,1.97542654]
[1758589356571,1.54679389,4189.0,4188.9,2.30332654]
[1758589359068,1.54679389,4189.0,4188.9,0.6475]
[1758589359282,1.54679389,4189.0,4188.9,0.4448]
[1758589360972,0.74543,4188.7,4188.6,40.8]
[1758589361176,1.42342389,4188.7,4188.6,0.4528]
[1758589361378,1.42342389,4188.7,4188.6,0.241]
[1758589362175,0.74548,4188.3,4188.2,0.2118]
[1758589362372,0.74548,4188.3,4187.6,3.4196]
[1758589362373,0.2034,4187.7,4187.6,3.4196]
[1758589362677,0.78419389,4187.7,4187.6,46.31912654]
[1758589363071,0.78419389,4187.7,4187.6,44.9912]
[1758589363375,0.78419389,4187.7,4187.6,46.31912654]
[1758589363974,0.58079389,4187.7,4187.6,46.31912654]
[1758589364876,0.26469389,4187.7,4187.6,46.31912654]
[1758589371174,0.58079389,4187.7,4187.6,46.31912654]
[1758589371365,0.26469389,4187.7,4187.6,46.31912654]
[1758589374977,0.26322328,4187.7,4187.6,45.90462654]
[1758589375276,0.3161,4188.5,4188.4,0.7424]
[1758589375474,0.57934729,4188.5,4188.4,2.31132654]
[1758589376773,1.11394729,4188.5,4188.4,2.31132654]
[1758589377580,1.11394729,4188.5,4188.4,1.98342654]
[1758589378073,1.11394729,4188.5,4188.4,2.31132654]
[1758589378673,1.11394729,4188.5,4188.4,2.13174899]
[1758589378971,0.78274729,4188.5,4188.4,2.13174899]
[1758589384982,0.57934729,4188.5,4188.4,2.13174899]
[1758589387480,0.26324729,4188.5,4188.4,2.13174899]
[1758589387884,0.59164729,4188.5,4188.4,2.13174899]
[1758589388079,0.81314729,4188.5,4188.4,2.13174899]
[1758589388280,0.81314729,4188.5,4188.4,42.93174899]
[1758589388781,4.15184729,4188.5,4188.4,41.4555]
[1758589389684,4.15184729,4188.5,4188.4,41.776]
[1758589392785,9.52109628,4188.5,4188.4,0.241]
[1758589392977,9.52109628,4188.5,4187.1,3.2078]
[1758589392978,1.20017,4188.4,4188.3,0.241]
[1758589393176,2.38298135,4188.4,4188.3,0.241]
[1758589393580,6.14423134,4188.4,4188.3,0.241]
[1758589394392,0.75782,4187.9,4187.8,40.8]
[1758589394576,1.02106729,4187.9,4187.8,41.041]
[1758589394781,1.46346729,4187.9,4187.8,0.241]
[1758589399187,1.27941,4187.0,4186.9,1.88334899]
[1758589399491,1.54265729,4187.0,4186.9,42.92434899]
[1758589399684,1.54265729,4187.0,4186.9,41.4679]
[1758589400289,1.54265729,4187.0,4186.9,0.2075]
[1758589401692,0.7169,4186.9,4186.8,1.38934899]
[1758589401890,0.98014729,4186.9,4186.8,1.38934899]
[1758589402395,0.98014729,4186.9,4186.8,2.12434899]
[1758589402584,0.77524729,4186.9,4186.8,2.12434899]
[1758589403093,0.98014729,4186.9,4186.8,2.12434899]
[1758589403392,0.77524729,4186.9,4186.8,2.12434899]
[1758589403684,0.26324729,4186.9,4186.8,2.12434899]
[1758589403891,0.77524729,4186.9,4186.8,2.12434899]
[1758589405387,0.98014729,4186.9,4186.8,2.12434899]
[1758589406192,0.77524729,4186.9,4186.8,2.12434899]
[1758589406391,0.26324729,4186.9,4186.8,2.12434899]
[1758589406982,3.2078,4187.5,4187.4,0.2075]
[1758589407183,0.26208463,4187.5,4187.4,3.27269798]
[1758589407387,0.42941,4188.0,4187.9,0.4269]
[1758589407587,0.42941,4188.0,4187.9,2.12434899]
[1758589407786,0.42941,4188.0,4187.9,42.92434899]
[1758589408087,0.73121,4188.0,4187.9,42.92434899]
[1758589408882,0.3018,4188.4,4187.9,42.61624899]
[1758589409193,0.94137,4188.4,4188.3,1.88334899]
[1758589409494,0.94137,4188.4,4188.3,2.12434899]
[1758589409790,0.3018,4188.5,4188.3,0.6679]
[1758589409995,0.3018,4188.5,4188.4,0.735]
[1758589410290,3.2078,4188.6,4188.5,0.84]
[1758589410594,3.2078,4188.6,4188.5,1.081]
[1758589412101,3.2078,4189.2,4188.8,0.7312]
[1758589412291,0.3068,4189.1,4189.0,0.7312]
[1758589412486,0.3068,4189.1,4189.0,0.9722]
[1758589412692,3.2078,4189.2,4189.1,0.3194]
[1758589412986,3.7306,4189.2,4189.1,0.7312]
[1758589413297,3.7306,4189.2,4189.1,41.5312]
[1758589413497,3.7306,4189.2,4189.1,42.67954899]
[1758589413693,0.3068,4189.4,4189.3,0.3194]
[1758589413997,0.7425,4189.7,4189.6,0.7312]
[1758589414196,0.7425,4189.7,4189.6,0.9722]
[1758589414494,0.3068,4189.7,4189.6,0.9722]
[1758589415100,0.5228,4189.7,4189.6,0.9722]
[1758589421901,0.5228,4189.7,4189.6,0.7312]
[1758589422101,0.55091,4189.0,4188.8,3.2078]
[1758589422403,0.7425,4188.9,4188.8,3.6196]
[1758589422599,0.7425,4188.9,4188.8,44.4196]
[1758589422801,0.7425,4188.9,4188.8,44.739]
[1758589423103,0.7425,4188.9,4188.8,44.98]
[1758589423397,0.7425,4188.9,4188.8,46.12834899]
[1758589423601,0.5228,4188.9,4188.8,46.12834899]
[1758589424004,0.5228,4188.9,4188.8,42.92054899]
[1758589425793,0.3068,4188.9,4188.8,42.92054899]
[1758589429409,1.17189,4188.2,4188.1,0.9722]
[1758589432906,1.17189,4188.2,4188.1,0.6528]
[1758589433205,1.42116955,4188.2,4188.1,0.6528]
[1758589436302,1.42116955,4188.2,4188.1,1.80114899]
[1758589438617,1.42116955,4188.2,4188.1,2.30120413]
[1758589438914,0.98546955,4188.2,4188.1,2.30120413]
[1758589439316,1.20146955,4188.2,4188.1,2.30120413]
[1758589441816,0.24927955,4188.2,4188.1,2.30120413]
[1758589442317,0.73299,4188.3,4188.2,0.7438]
[1758589442517,0.98175835,4188.3,4188.2,0.7438]
[1758589445420,1.20165835,4188.3,4188.2,0.7438]
[1758589447012,0.98716835,4188.3,4187.6,44.0078]
[1758589447217,1.29221,4188.0,4187.9,0.2121]
[1758589447412,1.54097835,4188.0,4187.9,0.4531]
[1758589447619,0.77226835,4188.0,4187.9,0.9848]
[1758589447917,0.24876835,4188.0,4187.9,0.9848]
[1758589450217,0.3036,4188.6,4187.9,0.6735]
[1758589450521,0.67524255,4188.5,4188.4,0.4325]
[1758589450817,0.97884255,4188.5,4188.4,0.9848]
[1758589451020,1.19874255,4188.5,4188.4,41.7848]
[1758589451318,1.32314255,4188.5,4188.4,41.041]
[1758589451920,1.32314255,4188.5,4188.4,41.3523]
[1758589453010,1.32314255,4188.5,4188.4,40.8]
[1758589453317,1.16783,4187.8,4187.7,0.7438]
[1758589453507,1.16783,4187.8,4187.7,0.9848]
[1758589453712,1.16783,4187.8,4187.7,41.7848]
[1758589454015,1.16783,4187.8,4187.7,41.2531]
[1758589454225,1.16783,4187.8,4187.7,41.041]
[1758589454411,1.16783,4187.8,4187.5,1.32900413]
[1758589454610,0.4348,4187.2,4186.8,1.32900413]
[1758589454820,1.29231,4187.0,4186.9,41.2541]
[1758589455416,1.29231,4187.0,4186.9,41.042]
[1758589456314,1.29231,4187.0,4186.9,0.242]
[1758589459928,1.29231,4187.0,4186.9,0.4485]
[1758589461524,0.73913,4186.8,4186.7,40.8]
[1758589461720,0.73913,4186.8,4186.7,42.37100413]
[1758589461926,0.73913,4186.8,4186.7,41.042]
[1758589462229,0.98409704,4186.8,4186.7,41.042]
[1758589462825,0.73913,4186.8,4186.7,41.042]
[1758589463025,1.14803,4186.8,4186.7,0.242]
[1758589463327,1.14808,4186.3,4186.2,0.7273]
[1758589463524,3.63734,4186.8,4186.7,0.414]
[1758589463825,4.35584,4186.8,4186.7,1.98500413]
[1758589465925,4.35584,4186.8,4186.7,0.2065]
[1758589466129,4.35584,4186.8,4186.7,0.4485]
[1758589467726,3.5174,4186.8,4186.2,40.8]
[1758589467931,0.7185,4186.3,4186.2,41.1133]
[1758589468131,0.5121,4186.3,4186.2,42.68430413]
[1758589469733,0.5121,4186.3,4186.2,41.3553]
[1758589469924,0.5121,4186.3,4186.2,42.68430413]
[1758589470829,0.5121,4186.3,4186.2,42.37100413]
[1758589471031,1.16168,4186.3,4186.2,0.242]
[1758589473033,1.40646451,4186.3,4186.2,0.242]
[1758589473231,1.40646451,4186.3,4186.2,0.4494]
[1758589473524,0.97688451,4186.3,4186.2,0.9761]
[1758589473721,0.3341,4186.5,4186.4,0.4167]
[1758589473930,0.57892627,4186.5,4186.4,2.30510413]
[1758589474331,0.80152627,4186.5,4186.4,43.10510413]
[1758589474535,0.93232627,4186.5,4186.4,42.37100413]
[1758589476136,0.93232627,4186.5,4186.4,42.68840413]
[1758589479545,0.93232627,4186.5,4186.4,42.37100413]
[1758589479851,0.93232627,4186.5,4186.4,40.8]
[1758589480149,0.93232627,4186.5,4186.4,41.042]
[1758589480848,1.15232627,4186.5,4186.4,0.9761]
[1758589483352,0.80152627,4186.5,4186.4,0.9761]
[1758589488557,0.80152627,4186.5,4186.4,41.7761]
[1758589490661,0.93232627,4186.5,4186.4,41.4587]
[1758589491155,0.93232627,4186.5,4186.4,41.2494]
[1758589491556,1.15232627,4186.5,4186.4,0.4494]
[1758589491952,1.15232627,4186.5,4186.4,0.242]
[1758589492959,0.42957,4186.4,4186.2,40.8]
[1758589493168,0.22,4186.0,4185.9,3.2078]
[1758589493464,1.58193627,4186.0,4185.9,4.1829]
[1758589493663,1.58193627,4186.0,4185.9,44.9829]
[1758589496660,0.24482627,4186.0,4185.9,44.9829]
[1758589498061,0.3341,4185.7,4185.6,0.5267]
[1758589498256,0.80152627,4185.7,4185.6,2.30410413]
[1758589498460,0.80152627,4185.7,4185.6,43.10410413]
[1758589498658,0.57892627,4185.7,4185.6,43.10410413]
[1758589498968,0.24482627,4185.7,4185.6,43.10410413]
[1758589500666,3.5246,4186.3,4185.6,44.07426248]
[1758589500866,0.82048235,4186.2,4186.1,1.14958124]
[1758589501167,1.27627235,4186.2,4186.1,1.39058124]
[1758589501368,1.03738235,4186.2,4186.1,1.39058124]
[1758589502067,1.46697235,4186.2,4186.1,1.39058124]
[1758589502570,1.46697235,4186.2,4186.1,0.241]
[1758589502774,1.46697235,4186.2,4185.8,1.14958124]
[1758589502775,0.42962,4185.9,4185.8,1.14958124]
[1758589503075,1.46700235,4185.9,4185.8,1.39058124]
[1758589503676,0.1311,4185.5,4185.3,1.14958124]
[1758589503864,0.8879,4185.0,4184.9,3.6246]
[1758589504068,1.16848235,4185.0,4184.9,3.8666]
[1758589505073,1.16770712,4185.0,4184.9,5.03166686]
[1758589505470,1.16770712,4185.0,4184.9,1.82386686]
[1758589507775,1.16770712,4185.0,4184.9,0.67428562]
[1758589507973,1.16770712,4185.0,4184.9,2.13496686]
[1758589508780,1.16770712,4185.0,4184.9,0.98538562]
[1758589508970,1.16770712,4185.0,4184.9,2.13496686]
[1758589512372,0.59660712,4185.0,4184.9,2.13496686]
[1758589512675,0.27980712,4185.0,4184.9,5.34276686]
[1758589513574,3.2078,4186.2,4185.9,0.203]
[1758589513877,0.74635,4186.6,4186.2,0.4168]
[1758589514177,0.96945,4186.6,4186.5,0.4168]
[1758589514378,0.96945,4186.6,4186.5,0.9699]
[1758589514773,0.96945,4186.6,4186.5,2.11948124]
[1758589515274,0.96945,4186.6,4186.5,2.13496686]
[1758589515780,0.5399,4186.6,4186.5,2.13496686]
[1758589516274,0.7568,4186.6,4186.5,1.82386686]
[1758589517173,0.7568,4186.6,4186.5,2.14996686]
[1758589520779,0.7568,4186.6,4186.5,1.00038562]
[1758589520979,0.7568,4186.6,4186.5,2.14996686]
[1758589521578,3.2078,4186.7,4186.6,0.3261]
[1758589521785,0.3316,4187.1,4187.0,0.6389]
[1758589522081,3.2078,4187.2,4187.1,0.4297]
[1758589522275,3.2078,4187.2,4187.1,0.44518562]
[1758589522478,3.2078,4187.2,4187.1,0.77128562]
[1758589522680,0.3316,4187.5,4187.4,0.7558]
[1758589522880,0.3316,4187.5,4187.4,2.14738124]
[1758589523385,0.3316,4187.5,4187.4,42.96286686]
[1758589525080,0.3316,4187.5,4187.4,41.81328562]
[1758589525284,0.3316,4187.5,4187.4,42.96286686]
[1758589525781,0.60667818,4187.5,4187.4,42.96286686]
[1758589526782,0.82537818,4187.5,4187.4,2.16286686]
[1758589528381,0.27507818,4187.5,4187.4,2.16286686]
[1758589529081,0.60667818,4187.5,4187.4,2.16286686]
[1758589532485,0.27507818,4187.5,4187.4,2.16286686]
[1758589532680,0.27507818,4187.5,4187.4,3.3124481]
[1758589532988,0.73971,4188.0,4187.9,0.7389]
[1758589533190,1.00980954,4188.0,4187.9,42.93048124]
[1758589533482,1.00980954,4188.0,4187.9,42.94596686]
[1758589535286,1.00980954,4188.0,4187.9,41.79638562]
[1758589535482,1.00980954,4188.0,4187.9,42.94596686]
[1758589542292,1.13950954,4188.0,4187.9,41.47048562]
[1758589542484,1.13950954,4188.0,4187.9,42.62006686]
[1758589542684,1.14011315,4188.0,4187.9,42.94596686]
[1758589544195,1.01041315,4188.0,4187.9,42.94596686]
[1758589545895,1.14011315,4188.0,4187.9,42.94496686]
[1758589547799,0.70011315,4188.0,4187.9,42.94496686]
[1758589548392,1.01041315,4188.0,4187.9,42.94496686]
[1758589551602,0.70011315,4188.0,4187.9,42.94496686]
[1758589551804,0.27070315,4188.0,4187.9,42.94496686]
[1758589556001,0.27070315,4188.0,4187.9,2.14496686]
[1758589559804,0.58100315,4188.0,4187.9,2.14496686]
[1758589562616,0.58100315,4188.0,4187.9,2.32450415]
[1758589563915,0.58100315,4188.0,4187.9,0.21788562]
[1758589563916,1.13790315,4188.0,4187.9,0.21788562]
[1758589564107,1.19135,4187.6,4187.5,0.2061]
[1758589564302,1.19138,4187.3,4187.2,0.2061]
[1758589564608,1.46322123,4187.3,4187.2,0.4471]
[1758589564809,1.46322123,4187.3,4187.2,0.241]
[1758589564810,2.14441367,4187.3,4187.2,0.241]
[1758589566105,1.31271,4187.0,4186.9,1.32911853]
[1758589566304,1.58455123,4187.0,4186.9,1.77621853]
[1758589566808,1.58455123,4187.0,4186.9,1.98361853]
[1758589567203,0.42954,4186.7,4186.6,0.2061]
[1758589567405,1.46328123,4186.7,4186.6,0.4471]
[1758589567900,1.46328123,4186.7,4186.6,0.241]
[1758589568301,1.46328123,4186.7,4186.6,0.4471]
[1758589572216,1.46328123,4186.7,4186.6,1.77621853]
[1758589572807,1.46328123,4186.7,4186.6,1.98361853]
[1758589573012,3.2078,4187.1,4186.6,4.06957706]
[1758589573213,0.70035805,4187.0,4186.9,2.06991853]
[1758589573419,1.24735805,4187.0,4186.9,2.31091853]
[1758589574716,0.81784805,4187.0,4186.9,2.31091853]
[1758589574909,0.27084805,4187.0,4186.9,2.31091853]
[1758589576521,0.80284805,4187.0,4186.9,2.31091853]
[1758589577323,0.27084805,4187.0,4186.9,2.31091853]
[1758589582330,0.42945,4187.6,4187.5,0.4231]
[1758589582628,0.42945,4187.6,4187.5,2.31561853]
[1758589582925,0.96145,4187.6,4187.5,43.11561853]
[1758589587124,0.74275,4187.6,4187.5,43.11561853]
[1758589594235,1.00682167,4187.6,4187.5,43.11561853]
[1758589595034,0.94332,4187.0,4186.9,0.7521]
[1758589595334,1.55289167,4187.0,4186.9,0.4615]
[1758589596432,0.4203,4186.8,4186.1,40.8]
[1758589596634,0.4203,4186.8,4185.0,0.1201]
[1758589596635,0.94345,4185.6,4185.5,2.08121853]
[1758589596839,1.20752167,4185.6,4185.5,2.32221853]
[1758589597135,1.42312167,4185.6,4185.5,43.12221853]
[1758589597331,0.42968,4185.3,4185.2,1.32911853]
[1758589597529,0.42968,4185.3,4185.2,1.79061853]
[1758589597530,1.42315167,4185.3,4185.2,1.79061853]
[1758589597729,1.42315167,4185.3,4185.2,42.59061853]
[1758589597936,1.42315167,4185.3,4185.2,42.89911853]
[1758589599232,0.77787167,4185.3,4185.2,42.89911853]
[1758589599437,0.57317167,4185.3,4185.2,42.89911853]
[1758589599638,0.26407167,4185.3,4185.2,41.57]
[1758589600036,0.57317167,4185.3,4185.2,41.329]
[1758589600236,0.57317167,4185.3,4185.2,41.57]
[1758589600538,0.26407167,4185.3,4185.2,41.57]
[1758589603441,0.3091,4186.1,4185.8,0.42962]
[1758589603746,0.3091,4186.3,4186.2,0.7521]
[1758589603945,0.5138,4186.3,4186.2,0.9931]
[1758589608455,0.7294,4186.3,4186.2,0.9931]
[1758589608645,0.7294,4186.3,4186.2,0.6846]
[1758589610951,0.7294,4186.3,4186.2,0.9931]
[1758589612047,1.28891,4186.0,4185.9,0.2205]
[1758589612253,1.28891,4186.0,4185.9,0.4615]
[1758589612454,1.28891,4186.0,4185.9,0.6846]
[1758589614254,1.28891,4186.0,4185.9,0.241]
[1758589614457,1.15906,4185.6,4185.5,0.4436]
[1758589614647,1.15906,4185.6,4185.5,0.6846]
[1758589614849,1.15906,4185.6,4185.5,0.9931]
[1758589615556,1.41869197,4185.6,4185.5,0.6846]
[1758589619959,1.41869197,4185.6,4185.5,0.4615]
[1758589621059,0.77343197,4185.6,4185.5,1.0135]
[1758589622058,3.5585,4186.5,4186.4,0.2219]
[1758589622248,4.19616,4186.5,4186.4,1.76491853]
[1758589622559,4.19616,4186.5,4186.4,0.4358]
[1758589622749,4.52036,4186.5,4186.4,0.4358]
[1758589622952,4.52036,4186.5,4186.4,0.7647]
[1758589623155,4.31226,4186.5,4186.4,0.7647]
[1758589623560,4.52036,4186.5,4186.4,0.4358]
[1758589625863,4.52036,4186.5,4186.3,0.241]
[1758589626068,0.7531,4185.9,4185.8,1.58546631]
[1758589626370,0.7531,4185.9,4185.8,1.82646631]
[1758589628471,0.3242,4186.2,4185.9,0.3289]
[1758589628671,0.3242,4186.2,4186.1,1.91436631]
[1758589628872,0.3242,4186.2,4186.1,2.15536631]
[1758589629072,0.545,4186.2,4186.1,2.15536631]
[1758589630172,0.3242,4186.4,4186.3,0.4358]
[1758589630372,0.75377,4186.4,4186.3,1.0057]
[1758589630573,0.97457,4186.4,4186.3,1.0057]
[1758589630875,1.18267,4186.4,4186.3,1.0057]
[1758589631076,1.18267,4186.4,4186.3,0.6768]
[1758589631275,1.18267,4186.4,4186.3,1.0057]
[1758589631471,0.7531,4186.4,4186.3,1.0057]
[1758589631676,0.3242,4186.4,4186.3,1.0057]
[1758589631878,0.545,4186.4,4186.3,1.0057]
[1758589632480,0.3242,4186.4,4186.3,1.0057]
[1758589632674,3.63736,4186.5,4186.4,0.3289]
[1758589632979,4.18236,4186.5,4186.4,1.91436631]
[1758589633883,4.51436,4186.5,4186.4,42.38546631]
[1758589634082,4.77168875,4186.5,4186.4,42.71436631]
[1758589634472,4.34212875,4186.5,4186.4,42.71436631]
[1758589634679,3.78932875,4186.5,4186.4,42.71436631]
[1758589635080,0.58152875,4186.5,4186.4,42.71436631]
[1758589637684,0.70512875,4186.5,4186.4,42.17156631]
[1758589637984,0.70512875,4186.5,4186.4,41.94966631]
[1758589638687,1.12882875,4186.5,4186.4,1.36196631]
[1758589643681,1.12882875,4186.5,4185.6,0.2123]
[1758589643682,0.4237,4185.7,4185.6,0.2123]
[1758589643881,0.4237,4185.7,4185.6,0.241]
[1758589643882,1.41686875,4185.7,4185.6,0.241]
[1758589644081,0.42974,4184.7,4184.6,3.4201]
[1758589644280,0.42974,4184.7,4184.6,5.02336631]
[1758589644281,1.20936875,4184.7,4184.6,5.02336631]
[1758589644474,1.20936875,4184.7,4184.6,45.82336631]
[1758589644680,1.20936875,4184.7,4184.6,46.13556631]
[1758589646391,1.20874592,4184.7,4184.6,46.13556631]
[1758589646681,0.95204,4184.7,4184.6,46.13556631]
[1758589646987,1.20874583,4184.7,4184.6,46.13556631]
[1758589647887,0.25670583,4184.7,4184.6,47.28523262]
[1758589648586,0.73587,4185.4,4185.3,0.5245]
[1758589648790,0.73587,4185.4,4185.3,0.9781]
[1758589648991,0.95197,4185.4,4185.3,0.9781]
[1758589649588,2.34718631,4186.5,4185.5,0.8023]
[1758589649589,0.42966,4185.6,4185.5,0.8023]
[1758589649792,0.42966,4185.6,4185.5,2.19296631]
[1758589650291,0.73586,4185.6,4185.5,42.99296631]
[1758589651387,0.42966,4185.6,4185.5,42.99296631]
[1758589651890,0.75006,4185.6,4185.5,42.99296631]
[1758589653086,0.42966,4185.6,4185.5,42.99296631]
[1758589654491,1.07393,4186.4,4185.6,0.3352]
[1758589654789,0.42957,4186.4,4186.3,1.91116631]
[1758589654986,0.42957,4186.4,4186.3,2.15216631]
[1758589655183,0.74997,4186.4,4186.3,2.15216631]
[1758589655392,0.95127,4186.4,4186.3,2.15216631]
[1758589655593,0.95127,4186.4,4186.3,1.0025]
[1758589655788,0.74997,4186.4,4186.3,2.15216631]
[1758589655989,3.2078,4186.5,4186.3,2.15216631]
[1758589656190,3.63736,4186.5,4186.4,0.7615]
[1758589656385,3.95776,4186.5,4186.4,0.7615]
[1758589656794,3.5282,4186.5,4186.4,0.7615]
[1758589657392,3.7295,4186.5,4186.4,0.7615]
[1758589659093,3.5282,4186.5,4186.4,0.7615]
[1758589659294,3.2078,4186.5,4186.4,0.7615]
[1758589659494,3.5282,4186.5,4186.4,0.7615]
[1758589659696,3.7295,4186.5,4186.4,0.7615]
[1758589660198,0.5217,4186.5,4186.4,0.7615]
[1758589660498,0.77291831,4186.5,4186.4,0.7615]
[1758589661689,0.25121831,4186.5,4186.4,0.7615]
[1758589662101,0.25121831,4186.5,4186.4,41.5615]
[1758589662597,0.25121831,4186.5,4186.4,44.7693]
[1758589662792,1.07355,4187.9,4187.1,0.3352]
[1758589662793,0.42949,4187.2,4187.1,0.3352]
[1758589662991,0.42949,4187.2,4187.1,2.15216631]
[1758589663191,0.95119,4187.2,4187.1,2.15216631]
[1758589665399,1.15819,4187.2,4187.1,2.15216631]
[1758589667401,0.95119,4187.2,4187.1,2.15216631]
[1758589667898,0.74987,4187.4,4187.3,0.7615]
[1758589668114,0.74987,4187.4,4187.3,1.91116631]
[1758589668490,0.42947,4187.4,4187.3,3.06083262]
[1758589668690,0.74987,4187.4,4187.3,1.91116631]
[1758589669502,3.63726,4187.5,4187.3,43.86083262]
[1758589669702,0.74983,4187.8,4187.7,0.4263]
[1758589670000,0.42943,4187.8,4187.7,2.15216631]
[1758589670397,0.74983,4187.8,4187.7,2.15216631]
[1758589671105,0.42943,4187.8,4187.7,2.15216631]
[1758589671702,0.74983,4187.8,4187.7,2.15216631]
[1758589672501,0.95113,4187.8,4187.7,2.15216631]
[1758589675207,1.15817,4187.4,4187.3,40.8]
[1758589675501,4.61295727,4187.4,4187.3,0.241]
[1758589675907,0.3204,4187.3,4187.2,40.8]
[1758589676202,0.56738727,4187.3,4187.2,41.041]
[1758589676405,1.15828,4186.3,4186.2,3.6341]
[1758589676593,0.5217,4186.3,4186.2,5.35996631]
[1758589676796,0.3204,4186.3,4186.2,46.15996631]
[1758589677295,0.7287,4186.3,4186.2,5.02476631]
[1758589677693,0.7287,4186.3,4186.2,45.82476631]
[1758589677899,0.7287,4186.3,4186.2,46.15996631]
[1758589678210,0.3204,4186.3,4186.2,46.15996631]
[1758589678910,0.42957,4186.4,4186.3,0.7615]
[1758589679311,0.95127,4186.4,4186.3,0.7615]
[1758589680408,0.95127,4186.4,4186.2,41.94966631]
[1758589680409,0.3323,4186.3,4186.2,41.94966631]
[1758589680710,0.7533,4185.8,4185.7,3.6345]
[1758589680904,1.18293,4185.8,4185.7,5.02516631]
[1758589681306,1.18293,4185.8,4185.7,46.15886631]
[1758589681507,1.19833,4186.5,4185.7,46.15886631]
[1758589681508,1.19833,4186.5,4185.7,46.97483262]
[1758589681813,1.00005014,4186.4,4186.3,0.4267]
[1758589682007,1.42962014,4186.4,4186.3,0.6677]
[1758589682905,1.42962014,4186.4,4186.3,1.99788363]
[1758589683307,0.76193,4185.8,4185.7,40.8]
[1758589683506,0.76193,4185.8,4185.7,41.042]
[1758589684114,0.76193,4185.8,4185.7,40.8]
[1758589684316,0.76193,4185.8,4185.7,41.042]
[1758589684615,1.00893871,4185.8,4185.7,41.042]
[1758589684815,1.00893871,4185.8,4185.7,41.3757]
[1758589685816,0.57930871,4185.8,4185.7,41.3757]
[1758589687111,0.42962,4186.0,4185.7,44.5835]
[1758589687310,0.97922,4186.0,4185.9,2.09058363]
[1758589687513,1.22634719,4186.0,4185.9,2.33258363]
[1758589687917,0.57942719,4186.0,4185.9,2.33258363]
[1758589689519,0.57939412,4186.0,4185.9,2.33258363]
[1758589689715,0.24709412,4186.0,4185.9,2.33258363]
[1758589691724,0.42958,4186.3,4186.2,0.7604]
[1758589692021,0.67661017,4186.3,4186.2,2.33258363]
[1758589692222,1.22621017,4186.3,4186.2,2.33258363]
[1758589694532,1.42991017,4186.3,4186.2,2.33258363]
[1758589694927,1.22621017,4186.3,4186.2,2.33258363]
[1758589698026,1.42861017,4186.3,4186.2,1.99888363]
[1758589698824,0.57933017,4186.3,4185.7,40.8]
[1758589699027,0.5228,4185.8,4185.7,40.8]
[1758589699329,1.27696,4185.5,4185.4,1.33018363]
[1758589699530,1.27696,4185.5,4185.4,1.57118363]
[1758589699832,1.27696,4185.5,4185.4,42.37118363]
[1758589700023,1.27696,4185.5,4185.4,1.57118363]
[1758589700528,1.27696,4185.5,4185.4,1.78458363]
[1758589701029,1.27696,4185.5,4185.4,1.98658363]
[1758589702130,1.5239254,4185.5,4185.4,1.98658363]
[1758589702630,1.5239254,4185.5,4185.4,2.30448363]
[1758589704830,1.52427549,4185.5,4185.4,2.30448363]
[1758589709725,1.19977549,4185.5,4185.4,2.30448363]
[1758589709931,0.24731549,4185.5,4185.4,2.54340363]
[1758589710732,0.24731549,4185.5,4185.4,2.30448363]
[1758589712735,1.10581549,4185.5,4185.4,2.31788363]
[1758589715327,1.10581549,4185.5,4185.4,1.98658363]
[1758589716435,1.10581549,4185.5,4185.4,2.31788363]
[1758589720636,1.10581549,4185.5,4185.4,0.9877]
[1758589720835,0.97931549,4185.5,4185.4,2.31788363]
[1758589721035,0.76501549,4185.5,4185.4,2.31788363]
[1758589724835,1.10581549,4185.5,4185.4,1.98658363]
[1758589725743,1.10581549,4185.5,4185.4,2.31788363]
[1758589726044,1.10581549,4185.5,4185.4,1.98658363]
[1758589726345,1.10626039,4185.5,4185.4,1.98658363]
[1758589726540,1.10626039,4185.5,4185.4,2.31788363]